{"text_format":"1","workbook":"xlsx","n_sheets":6,"sheets":["様式第1号 交付申請書","様式2号 施設・事業所別申請類一覧","補助金checklist","Sheet1","食事提供加算有","食事提供加算無"],"not_rendered":{"charts":0,"images":0,"macros":0,"external_links":5,"defined_names":17,"comments":1,"pivot_tables":0},"unopened":[],"bounds":{"document_bytes":16777216,"sheet_cells":100000,"rows_first":2000,"rows_last":500,"rows_between":2000,"halvings":0,"cell_chars":16384,"cell_head_chars":4096},"cells_cut":0,"cells_raw":0,"read":"whole","date_system":"1900"}

{"sheet":"様式第1号 交付申請書","index":0,"n_rows":45,"n_cols":7,"rows_kept":45,"cut":false,"hidden":false,"merged":[[23,0,23,2],[23,3,23,7],[22,0,22,7],[32,0,32,7],[25,0,27,2],[29,0,31,2],[25,3,27,7],[29,3,31,7],[44,5,44,7],[33,0,33,7],[34,0,34,7],[42,5,42,7],[43,5,43,7],[41,5,41,7],[12,5,12,7],[13,5,13,7],[14,5,14,7],[21,4,21,5],[15,0,15,7],[16,0,16,7],[12,0,12,4],[13,0,13,4],[14,0,14,4],[19,0,19,7],[20,0,20,7],[17,0,17,7],[18,0,18,7],[21,0,21,2],[7,0,7,7],[8,0,8,7],[9,0,9,7],[10,0,10,7],[11,5,11,7],[11,0,11,4],[6,0,6,7],[1,0,1,7],[2,0,2,7],[3,0,3,7],[0,0,0,7],[4,0,4,7],[5,0,5,7]]}
["様式第１号（第７条関係）"]
[]
["埼玉県障害福祉サービス事業所等に対するサービス継続支援事業"]
["補助金交付申請書"]
[]
["第　　　　　号"]
["令和　年　月　日"]
[]
["（宛先）"]
["  埼玉県知事"]
[]
["（申請者）"]
["所　 在 　地"]
["法人等の名称"]
["代表者職氏名"]
[]
[]
["　下記により、埼玉県障害福祉サービス事業所等に対するサービス継続支援事業補助金の"]
["の交付を受けたいので、補助金等の交付手続等に関する規則第４条の規定により、関係"]
["書類を添えて申請します。"]
["記"]
["１　補助金交付申請額",null,null,"金",{"$f":"SUM('様式2号 施設・事業所別申請類一覧'!G4:G103)","v":0},null,"千円"]
[]
["２　施設・事業所別申請額一覧",null,null,"様式第２号のとおり"]
[]
["３　障害福祉サービス事業所等に対するサービス継続支援事業に関する事業実施計画書",null,null,"様式第３号のとおり"]
[]
[]
[]
["４　障害福祉サービス提供実績確認書類（訪問系、通所系のみ）",null,null,"様式第４号のとおり"]
[]
[]
[]
["５　申請に係る施設・事業所の事業開始を確認できる書類"]
["  （ ※指定申請書の写し等を添付） "]
[]
["６　その他知事が定める書類"]
[]
["７　チェックリスト"]
[]
[null,null,null,null,"【連絡先】"]
[null,null,null,null,"部署名"]
[null,null,null,null,"担当者氏名"]
[null,null,null,null,"電話番号"]
[null,null,null,null,"e-mail"]

{"sheet":"様式2号 施設・事業所別申請類一覧","index":1,"n_rows":103,"n_cols":8,"rows_kept":103,"cut":false,"hidden":false,"merged":[[0,0,0,1],[0,2,0,4]]}
["法人名",null,{"$f":"'様式第1号 交付申請書'!F14:H14","v":{"$error":"#VALUE!"}}]
[]
["NO","施設・事業所名","事業所番号","サービス種別","指定日","住所","補助予定額(千円単位）","審査結果"]
[1]
[2]
[3]
[4]
[5]
[6]
[7]
[8]
[9]
[10]
[11]
[12]
[13]
[14]
[15]
[16]
[17]
[18]
[19]
[20]
[21]
[22]
[23]
[24]
[25]
[26]
[27]
[28]
[29]
[30]
[31]
[32]
[33]
[34]
[35]
[36]
[37]
[38]
[39]
[40]
[41]
[42]
[43]
[44]
[45]
[46]
[47]
[48]
[49]
[50]
[51]
[52]
[53]
[54]
[55]
[56]
[57]
[58]
[59]
[60]
[61]
[62]
[63]
[64]
[65]
[66]
[67]
[68]
[69]
[70]
[71]
[72]
[73]
[74]
[75]
[76]
[77]
[78]
[79]
[80]
[81]
[82]
[83]
[84]
[85]
[86]
[87]
[88]
[89]
[90]
[91]
[92]
[93]
[94]
[95]
[96]
[97]
[98]
[99]
[100]

{"sheet":"補助金checklist","index":2,"n_rows":43,"n_cols":26,"rows_kept":43,"cut":false,"hidden":false,"merged":[[19,2,19,33],[20,2,20,33],[21,2,21,33],[18,1,18,33],[23,2,23,33],[22,2,22,33],[0,25,0,35],[3,0,3,35],[7,0,7,5],[7,6,7,35],[8,0,8,5],[8,6,8,35],[0,22,0,24],[9,0,11,5],[9,7,9,11],[10,6,10,35],[11,6,11,35],[12,0,12,5],[9,12,9,35],[12,23,12,35],[12,6,12,22],[15,0,15,35],[13,0,13,5],[14,0,14,5],[13,6,13,22],[13,23,13,25],[13,26,13,35],[14,6,14,8],[14,19,14,21],[14,22,14,35],[14,9,14,18],[24,2,24,33],[25,2,25,33],[36,13,36,15],[36,16,36,35],[28,2,28,33],[27,2,27,33],[26,2,26,33],[37,34,37,35],[31,2,31,35],[34,1,34,34],[36,3,36,4],[36,6,36,7],[36,9,36,10],[37,13,37,15],[37,16,37,17],[37,18,37,22],[37,23,37,24],[37,25,37,33]]}
[null,null,null,null,null,null,null,null,null,null,null,null,null,null,null,null,null,null,null,null,null,null,"No.",null,null,{"$f":"IF([5]基本情報入力シート!R11=\"\",\"\",[5]基本情報入力シート!R11)","v":""}]
[]
[]
["埼玉県障害福祉サービス事業所等に対するサービス継続支援事業補助金チェックリスト"]
[]
["◎　基本情報"]
[]
["フリガナ"]
["法人名",null,null,null,null,null,{"$f":"'様式第1号 交付申請書'!F14","v":0}]
["法人所在地",null,null,null,null,null,"〒"]
[null,null,null,null,null,null,{"$f":"'様式第1号 交付申請書'!F13","v":0}]
[]
["フリガナ"]
["書類作成担当者",null,null,null,null,null,null,null,null,null,null,null,null,null,null,null,null,null,null,null,null,null,null,"電話番号"]
["連絡先",null,null,null,null,null,"FAX番号",null,null,null,null,null,null,null,null,null,null,null,null,"E-mail"]
["※連絡先は必ず日中連絡できる電話番号を記載すること。不明な点等があれば事務局から問い合わせがあります。"]
[null,"以下の点を確認し、全ての項目にチェックして下さい。"]
[null,"　　　※（チェックできない項目があれば申請内容の修正が必要です。見直してください）"]
[null,"確認項目"]
[null,null,"令和８年３月１日時点で県から障害福祉サービス事業所、障害児者支援施設の指定を受けています。"]
[null,null,"令和８年３月１日時点で事業の休止、廃止はしていません。"]
[null,null,"補助金申請に必要な資料はすべて添付しています。"]
[null,null,"様式第３号 施設・事業所別個票（障害福祉サービス事業所等に対するサービス継続支援事業に関する事業実施計画書）には、必要な項目がすべて記載しており、所要額に消費税及び地方消費税は除いている。"]
[null,null,"（提供サービスが異なっていても同じ住所地の事業所は申請できません。）\n同じ住所の事業所で２重申請はしていません。"]
[null,null,"（提供サービスが異なっていても同じ住所地の事業所は申請できません。高齢者等に対する訪問介護等も含みます。）同じ住所の事業所で２重申請はしていません。"]
[null,null,"（者入所系のみ）\nサービス区分は「入所系」で申請しています。"]
[null,null,"（入所系のみ）\n定員数に、短期入所（併設型、空床型）の定員数又は利用者数は含んでおりません。"]
[null,null,"（通所系のみ）様式第4号 障害福祉サービス提供実績確認書類（訪問系、通所系のみ）の基準単価（１月当たりの延べ利用者数）の選択に誤りはありません。"]
[null,null,"（訪問系のみ）様式第4号 障害福祉サービス提供実績確認書類（訪問系、通所系のみ）の基準単価（１月当たりの延べ訪問回数）の選択に誤りはありません。"]
[]
[null,"※","各証明資料は、指定権者からの求めがあった場合には、速やかに提出すること。"]
[null,"※　","本表への虚偽記載の他、交付金の請求に関して不正があった場合は、指定の取消しや補助金額の返還を求めることになります。"]
[]
[]
[null,"記載内容及び添付資料に虚偽がないことを証明するとともに、記載内容を証明する資料を適切に保管していることを誓約します。"]
[]
[null,"令和",null,8,null,"年",null,null,"月",null,null,"日",null,"法人名",null,null,{"$f":"'様式第1号 交付申請書'!F14","v":0}]
[null,null,null,null,null,null,null,null,null,null,null,null,null,"代表者",null,null,"職名",null,null,null,null,null,null,"氏名"]
[]
[]
[]
[]
[null,"."]

{"sheet":"Sheet1","index":3,"n_rows":13,"n_cols":1,"rows_kept":13,"cut":false,"hidden":true,"merged":[]}
[]
["入所系（施設入所支援）"]
["入所系（共同生活援助）"]
["入所系（短期入所（単独型））"]
["入所系（福祉型障害児入所施設）"]
["入所系（医療型障害児入所施設）"]
["通所系（1月当たり延べ利用者数～300人）"]
["通所系（1月当たり延べ利用者数301～600人）"]
["通所系（1月当たり延べ利用者数601人～）"]
["訪問系（同一建物減算がある場合）"]
["訪問系（1月当たり延べ訪問回数～200回）"]
["訪問系（1月当たり延べ訪問回数201回～2,000回）"]
["訪問系（1月当たり延べ訪問回数2,001回～）"]

{"sheet":"食事提供加算有","index":4,"n_rows":75,"n_cols":13,"rows_kept":75,"cut":false,"hidden":true,"merged":[[48,5,51,5],[48,6,51,6],[50,1,51,1],[1,2,9,2],[1,3,9,3],[1,4,9,4],[1,5,9,5],[1,6,9,6],[2,1,3,1],[64,2,66,2],[64,3,66,3],[64,4,66,4],[48,1,49,1],[48,2,51,2],[48,3,51,3],[48,4,51,4]]}
[null,"通所系","支給単位","高圧かつ都市ガスを利用している場合","高圧かつプロパンガスを利用している場合","低圧かつ都市ガスを利用している場合","低圧かつプロパンガスを利用している場合","児・者　入所支援施設"]
[null,"生活介護","１事業所当たり",{"$f":"食事提供加算無!D28+408400","v":469500},{"$f":"食事提供加算無!E28+408400","v":482000},{"$f":"食事提供加算無!F28+408400","v":425800},{"$f":"食事提供加算無!G28+408400","v":438300},"障害者入所支援施設"]
[null,"短期入所（単独型）",null,null,null,null,null,"福祉型障害児入所施設"]
[null,null,null,null,null,null,null,"医療型障害児入所施設"]
[null,"自立訓練（機能訓練）",null,null,null,null,null,null,null,218100,219500,199900,201300]
[null,"自立訓練（生活訓練）"]
[null,"自立訓練（宿泊型）",null,null,null,null,null,null,null,469500]
[null,"就労移行支援",null,null,null,null,null,null,null,482000]
[null,"就労継続支援Ａ型",null,null,null,null,null,null,null,425800]
[null,"就労継続支援Ｂ型",null,null,null,null,null,null,null,438300]
[]
["key","通所系","高圧・低圧","都市ガス・プロパンガス","金額"]
[{"$f":"B13&C13&D13","v":"生活介護高圧都市ガス"},"生活介護","高圧","都市ガス",469500]
[{"$f":"B14&C14&D14","v":"生活介護高圧プロパンガス"},"生活介護","高圧","プロパンガス",482000]
["生活介護低圧都市ガス","生活介護","低圧","都市ガス",425800]
["生活介護低圧プロパンガス","生活介護","低圧","プロパンガス",438300]
["短期入所（単独型）高圧都市ガス","短期入所（単独型）","高圧","都市ガス",469500]
["短期入所（単独型）高圧プロパンガス","短期入所（単独型）","高圧","プロパンガス",482000]
["短期入所（単独型）低圧都市ガス","短期入所（単独型）","低圧","都市ガス",425800]
["短期入所（単独型）低圧プロパンガス","短期入所（単独型）","低圧","プロパンガス",438300]
["自立訓練（機能訓練）高圧都市ガス","自立訓練（機能訓練）","高圧","都市ガス",469500]
["自立訓練（機能訓練）高圧プロパンガス","自立訓練（機能訓練）","高圧","プロパンガス",482000]
["自立訓練（機能訓練）低圧都市ガス","自立訓練（機能訓練）","低圧","都市ガス",425800]
["自立訓練（機能訓練）低圧プロパンガス","自立訓練（機能訓練）","低圧","プロパンガス",438300]
["自立訓練（生活訓練）高圧都市ガス","自立訓練（生活訓練）","高圧","都市ガス",469500]
["自立訓練（生活訓練）高圧プロパンガス","自立訓練（生活訓練）","高圧","プロパンガス",482000]
["自立訓練（生活訓練）低圧都市ガス","自立訓練（生活訓練）","低圧","都市ガス",425800]
["自立訓練（生活訓練）低圧プロパンガス","自立訓練（生活訓練）","低圧","プロパンガス",438300]
["自立訓練（宿泊型）高圧都市ガス","自立訓練（宿泊型）","高圧","都市ガス",469500]
["自立訓練（宿泊型）高圧プロパンガス","自立訓練（宿泊型）","高圧","プロパンガス",482000]
["自立訓練（宿泊型）低圧都市ガス","自立訓練（宿泊型）","低圧","都市ガス",425800]
["自立訓練（宿泊型）低圧プロパンガス","自立訓練（宿泊型）","低圧","プロパンガス",438300]
["就労移行支援高圧都市ガス","就労移行支援","高圧","都市ガス",469500]
["就労移行支援高圧プロパンガス","就労移行支援","高圧","プロパンガス",482000]
["就労移行支援低圧都市ガス","就労移行支援","低圧","都市ガス",425800]
["就労移行支援低圧プロパンガス","就労移行支援","低圧","プロパンガス",438300]
["就労継続支援Ａ型高圧都市ガス","就労継続支援Ａ型","高圧","都市ガス",469500]
["就労継続支援Ａ型高圧プロパンガス","就労継続支援Ａ型","高圧","プロパンガス",482000]
["就労継続支援Ａ型低圧都市ガス","就労継続支援Ａ型","低圧","都市ガス",425800]
["就労継続支援Ａ型低圧プロパンガス","就労継続支援Ａ型","低圧","プロパンガス",438300]
[{"$f":"B41&C41&D41","v":"就労継続支援Ｂ型高圧都市ガス"},"就労継続支援Ｂ型","高圧","都市ガス",469500]
["就労継続支援Ｂ型高圧プロパンガス","就労継続支援Ｂ型","高圧","プロパンガス",482000]
["就労継続支援Ｂ型低圧都市ガス","就労継続支援Ｂ型","低圧","都市ガス",425800]
["就労継続支援Ｂ型低圧プロパンガス","就労継続支援Ｂ型","低圧","プロパンガス",438300]
[]
[]
[]
[null,"児通所系","支給単位","高圧かつ都市ガスを利用している場合","低圧かつプロパンガスを利用している場合","低圧かつ都市ガスを利用している場合","低圧かつプロパンガスを利用している場合"]
[null,"児童発達支援センター","１事業所当たり",{"$f":"食事提供加算無!D100+408400","v":438950},{"$f":"食事提供加算無!E100+408400","v":443600},{"$f":"食事提供加算無!F100+408400","v":417100},{"$f":"食事提供加算無!G100+408400","v":421750}]
[]
[null,"医療型児童発達支援センター"]
[]
[]
["key","通所系","高圧・低圧","都市ガス・プロパンガス","金額"]
[{"$f":"B55&C55&D55","v":"児童発達支援センター高圧都市ガス"},"児童発達支援センター","高圧","都市ガス",438950,null,null,null,438950]
["児童発達支援センター高圧プロパンガス","児童発達支援センター","高圧","プロパンガス",443600,null,null,null,443600]
["児童発達支援センター低圧都市ガス","児童発達支援センター","低圧","都市ガス",417100,null,null,null,417100]
["児童発達支援センター低圧プロパンガス","児童発達支援センター","低圧","プロパンガス",421750,null,null,null,421750]
["医療型児童発達支援センター高圧都市ガス","医療型児童発達支援センター","高圧","都市ガス",438950]
["医療型児童発達支援センター高圧プロパンガス","医療型児童発達支援センター","高圧","プロパンガス",443600]
["医療型児童発達支援センター低圧都市ガス","医療型児童発達支援センター","低圧","都市ガス",417100]
["医療型児童発達支援センター低圧プロパンガス","医療型児童発達支援センター","低圧","プロパンガス",421750]
[]
[null,"児・者　入所支援施設","支給単位","都市ガスを利用している場合","プロパンガスを利用している場合"]
[null,"障害者入所支援施設","定員１人当たり",44100,45100]
[null,"福祉型障害児入所施設"]
[null,"医療型障害児入所施設"]
[]
["key","児・者　入所支援施設","高圧・低圧","都市ガス・プロパンガス","金額","プロパンガスの場合、控除"]
[{"$f":"B70&D70","v":"障害者入所支援施設都市ガス"},"障害者入所支援施設","-","都市ガス",44100,0,null,null,44100]
[{"$f":"B71&D71","v":"障害者入所支援施設プロパンガス"},"障害者入所支援施設","-","プロパンガス",45100,3200,null,null,45100]
["福祉型障害児入所施設都市ガス","福祉型障害児入所施設","-","都市ガス",44100,0]
["福祉型障害児入所施設プロパンガス","福祉型障害児入所施設","-","プロパンガス",45100,3200]
["医療型障害児入所施設都市ガス","医療型障害児入所施設","-","都市ガス",44100,0]
["医療型障害児入所施設プロパンガス","医療型障害児入所施設","-","プロパンガス",45100,3200]

{"sheet":"食事提供加算無","index":5,"n_rows":147,"n_cols":11,"rows_kept":147,"cut":false,"hidden":true,"merged":[[1,2,5,2],[1,3,5,3],[1,4,5,4],[27,2,35,2],[27,3,35,3],[27,4,35,4],[125,2,127,2],[125,3,127,3],[125,4,127,4],[27,5,35,5],[27,6,35,6],[77,2,79,2],[77,3,79,3],[77,4,79,4],[77,5,79,5],[77,6,79,6],[99,2,102,2],[99,3,102,3],[99,4,102,4],[99,5,102,5],[99,6,102,6]]}
[null,"訪問系","支給単位","都市ガスを利用している場合","プロパンガスを利用している場合"]
[null,"居宅介護","１事業所当たり",4100,3600]
[null,"重度訪問介護"]
[null,"同行援護"]
[null,"行動援護"]
[null,"重度障害者等包括支援"]
[]
["key","訪問系","高圧・低圧","都市ガス・プロパンガス","金額"]
[{"$f":"B9&D9","v":"居宅介護都市ガス"},"居宅介護","-","都市ガス",4100]
[{"$f":"B10&D10","v":"居宅介護プロパンガス"},"居宅介護","-","プロパンガス",3600]
["重度訪問介護都市ガス","重度訪問介護","-","都市ガス",4100]
["重度訪問介護プロパンガス","重度訪問介護","-","プロパンガス",3600]
["同行援護都市ガス","同行援護","-","都市ガス",4100]
["同行援護プロパンガス","同行援護","-","プロパンガス",3600]
["行動援護都市ガス","行動援護","-","都市ガス",4100]
["行動援護プロパンガス","行動援護","-","プロパンガス",3600]
["重度障害者等包括支援都市ガス","重度障害者等包括支援","-","都市ガス",4100]
["重度障害者等包括支援プロパンガス","重度障害者等包括支援","-","プロパンガス",3600]
["児訪問系都市ガス","児訪問系","-","都市ガス",4100]
["児訪問系プロパンガス","児訪問系","-","プロパンガス",3600]
["居宅訪問型児童発達支援都市ガス","居宅訪問型児童発達支援","-","都市ガス",4100]
["居宅訪問型児童発達支援プロパンガス","居宅訪問型児童発達支援","-","プロパンガス",3600]
["保育所等訪問支援都市ガス","保育所等訪問支援","-","都市ガス",4100]
["保育所等訪問支援プロパンガス","保育所等訪問支援","-","プロパンガス",3600]
[]
[]
[null,"通所系","支給単位","高圧かつ都市ガスを利用している場合","高圧かつプロパンガスを利用している場合","低圧かつ都市ガスを利用している場合","低圧かつプロパンガスを利用している場合"]
[null,"生活介護","１事業所当たり",61100,73600,17400,29900]
[null,"短期入所（単独型）"]
[null,"療養介護"]
[null,"自立訓練（機能訓練）"]
[null,"自立訓練（生活訓練）"]
[null,"自立訓練（宿泊型）",null,null,null,null,null,null,73600,17400,29900]
[null,"就労移行支援"]
[null,"就労継続支援Ａ型"]
[null,"就労継続支援Ｂ型"]
[]
["key","通所系","高圧・低圧","都市ガス・プロパンガス","金額"]
[{"$f":"B39&C39&D39","v":"生活介護高圧都市ガス"},"生活介護","高圧","都市ガス",61100]
[{"$f":"B40&C40&D40","v":"生活介護高圧プロパンガス"},"生活介護","高圧","プロパンガス",73600]
["生活介護低圧都市ガス","生活介護","低圧","都市ガス",17400]
["生活介護低圧プロパンガス","生活介護","低圧","プロパンガス",29900]
[{"$f":"B43&C43&D43","v":"短期入所（単独型）高圧都市ガス"},"短期入所（単独型）","高圧","都市ガス",61100]
[{"$f":"B44&C44&D44","v":"短期入所（単独型）高圧プロパンガス"},"短期入所（単独型）","高圧","プロパンガス",73600]
["短期入所（単独型）低圧都市ガス","短期入所（単独型）","低圧","都市ガス",17400]
["短期入所（単独型）低圧プロパンガス","短期入所（単独型）","低圧","プロパンガス",29900]
[{"$f":"B47&C47&D47","v":"療養介護高圧都市ガス"},"療養介護","高圧","都市ガス",61100]
[{"$f":"B48&C48&D48","v":"療養介護高圧プロパンガス"},"療養介護","高圧","プロパンガス",73600]
["療養介護低圧都市ガス","療養介護","低圧","都市ガス",17400]
["療養介護低圧プロパンガス","療養介護","低圧","プロパンガス",29900]
[{"$f":"B51&C51&D51","v":"自立訓練（機能訓練）高圧都市ガス"},"自立訓練（機能訓練）","高圧","都市ガス",61100]
[{"$f":"B52&C52&D52","v":"自立訓練（機能訓練）高圧プロパンガス"},"自立訓練（機能訓練）","高圧","プロパンガス",73600]
["自立訓練（機能訓練）低圧都市ガス","自立訓練（機能訓練）","低圧","都市ガス",17400]
["自立訓練（機能訓練）低圧プロパンガス","自立訓練（機能訓練）","低圧","プロパンガス",29900]
[{"$f":"B55&C55&D55","v":"自立訓練（生活訓練）高圧都市ガス"},"自立訓練（生活訓練）","高圧","都市ガス",61100]
[{"$f":"B56&C56&D56","v":"自立訓練（生活訓練）高圧プロパンガス"},"自立訓練（生活訓練）","高圧","プロパンガス",73600]
["自立訓練（生活訓練）低圧都市ガス","自立訓練（生活訓練）","低圧","都市ガス",17400]
["自立訓練（生活訓練）低圧プロパンガス","自立訓練（生活訓練）","低圧","プロパンガス",29900]
[{"$f":"B59&C59&D59","v":"自立訓練（宿泊型）高圧都市ガス"},"自立訓練（宿泊型）","高圧","都市ガス",61100]
[{"$f":"B60&C60&D60","v":"自立訓練（宿泊型）高圧プロパンガス"},"自立訓練（宿泊型）","高圧","プロパンガス",73600]
["自立訓練（宿泊型）低圧都市ガス","自立訓練（宿泊型）","低圧","都市ガス",17400]
["自立訓練（宿泊型）低圧プロパンガス","自立訓練（宿泊型）","低圧","プロパンガス",29900]
[{"$f":"B63&C63&D63","v":"就労移行支援高圧都市ガス"},"就労移行支援","高圧","都市ガス",61100]
[{"$f":"B64&C64&D64","v":"就労移行支援高圧プロパンガス"},"就労移行支援","高圧","プロパンガス",73600]
["就労移行支援低圧都市ガス","就労移行支援","低圧","都市ガス",17400]
["就労移行支援低圧プロパンガス","就労移行支援","低圧","プロパンガス",29900]
[{"$f":"B67&C67&D67","v":"就労継続支援Ａ型高圧都市ガス"},"就労継続支援Ａ型","高圧","都市ガス",61100]
[{"$f":"B68&C68&D68","v":"就労継続支援Ａ型高圧プロパンガス"},"就労継続支援Ａ型","高圧","プロパンガス",73600]
["就労継続支援Ａ型低圧都市ガス","就労継続支援Ａ型","低圧","都市ガス",17400]
["就労継続支援Ａ型低圧プロパンガス","就労継続支援Ａ型","低圧","プロパンガス",29900]
[{"$f":"B71&C71&D71","v":"就労継続支援Ｂ型高圧都市ガス"},"就労継続支援Ｂ型","高圧","都市ガス",61100]
[{"$f":"B72&C72&D72","v":"就労継続支援Ｂ型高圧プロパンガス"},"就労継続支援Ｂ型","高圧","プロパンガス",73600]
["就労継続支援Ｂ型低圧都市ガス","就労継続支援Ｂ型","低圧","都市ガス",17400]
["就労継続支援Ｂ型低圧プロパンガス","就労継続支援Ｂ型","低圧","プロパンガス",29900]
[]
[]
[null,"共同生活援助系","支給単位","高圧かつ都市ガスを利用している場合","高圧かつプロパンガスを利用している場合","低圧かつ都市ガスを利用している場合","低圧かつプロパンガスを利用している場合"]
[null,"共同生活援助（介護サービス包括型）","１住居定員１人当たり",6100,7400,3600,4900]
[null,"共同生活援助（日中サービス支援型）"]
[null,"共同生活援助（外部サービス利用型）"]
[]
["key","共同生活援助系","高圧・低圧","都市ガス・プロパンガス","金額","プロパンガスの場合、控除"]
[{"$f":"B83&C83&D83","v":"共同生活援助（介護サービス包括型）高圧都市ガス"},"共同生活援助（介護サービス包括型）","高圧","都市ガス",6100,0]
[{"$f":"B84&C84&D84","v":"共同生活援助（介護サービス包括型）高圧プロパンガス"},"共同生活援助（介護サービス包括型）","高圧","プロパンガス",7400,3200]
["共同生活援助（介護サービス包括型）低圧都市ガス","共同生活援助（介護サービス包括型）","低圧","都市ガス",3600,0]
["共同生活援助（介護サービス包括型）低圧プロパンガス","共同生活援助（介護サービス包括型）","低圧","プロパンガス",4900,3200]
["共同生活援助（日中サービス支援型）高圧都市ガス","共同生活援助（日中サービス支援型）","高圧","都市ガス",6100,0]
["共同生活援助（日中サービス支援型）高圧プロパンガス","共同生活援助（日中サービス支援型）","高圧","プロパンガス",7400,3200]
["共同生活援助（日中サービス支援型）低圧都市ガス","共同生活援助（日中サービス支援型）","低圧","都市ガス",3600,0]
["共同生活援助（日中サービス支援型）低圧プロパンガス","共同生活援助（日中サービス支援型）","低圧","プロパンガス",4900,3200]
["共同生活援助（外部サービス利用型）高圧都市ガス","共同生活援助（外部サービス利用型）","高圧","都市ガス",6100,0]
["共同生活援助（外部サービス利用型）高圧プロパンガス","共同生活援助（外部サービス利用型）","高圧","プロパンガス",7400,3200]
["共同生活援助（外部サービス利用型）低圧都市ガス","共同生活援助（外部サービス利用型）","低圧","都市ガス",3600,0]
["共同生活援助（外部サービス利用型）低圧プロパンガス","共同生活援助（外部サービス利用型）","低圧","プロパンガス",4900,3200]
[]
[]
[]
[]
[null,"児通所系","支給単位","高圧かつ都市ガスを利用している場合","低圧かつプロパンガスを利用している場合","低圧かつ都市ガスを利用している場合","低圧かつプロパンガスを利用している場合"]
[null,"児童発達支援","１事業所当たり",30550,35200,8700,13350]
[null,"児童発達支援センター"]
[null,"医療型児童発達支援センター",null,null,null,null,null,null,38700,29650,29600]
[null,"放課後等デイサービス"]
[]
["key","児通所系","高圧・低圧","都市ガス・プロパンガス","金額"]
[{"$f":"B106&C106&D106","v":"児童発達支援高圧都市ガス"},"児童発達支援","高圧","都市ガス",30550]
[{"$f":"B107&C107&D107","v":"児童発達支援高圧プロパンガス"},"児童発達支援","高圧","プロパンガス",35200]
["児童発達支援低圧都市ガス","児童発達支援","低圧","都市ガス",8700]
["児童発達支援低圧プロパンガス","児童発達支援","低圧","プロパンガス",13350]
[{"$f":"B110&C110&D110","v":"児童発達支援センター高圧都市ガス"},"児童発達支援センター","高圧","都市ガス",30550]
[{"$f":"B111&C111&D111","v":"児童発達支援センター高圧プロパンガス"},"児童発達支援センター","高圧","プロパンガス",35200]
["児童発達支援センター低圧都市ガス","児童発達支援センター","低圧","都市ガス",8700]
["児童発達支援センター低圧プロパンガス","児童発達支援センター","低圧","プロパンガス",13350]
[{"$f":"B114&C114&D114","v":"医療型児童発達支援センター高圧都市ガス"},"医療型児童発達支援センター","高圧","都市ガス",30550]
[{"$f":"B115&C115&D115","v":"医療型児童発達支援センター高圧プロパンガス"},"医療型児童発達支援センター","高圧","プロパンガス",35200]
["医療型児童発達支援センター低圧都市ガス","医療型児童発達支援センター","低圧","都市ガス",8700]
["医療型児童発達支援センター低圧プロパンガス","医療型児童発達支援センター","低圧","プロパンガス",13350]
[{"$f":"B118&C118&D118","v":"放課後等デイサービス高圧都市ガス"},"放課後等デイサービス","高圧","都市ガス",30550]
[{"$f":"B119&C119&D119","v":"放課後等デイサービス高圧プロパンガス"},"放課後等デイサービス","高圧","プロパンガス",35200]
["放課後等デイサービス低圧都市ガス","放課後等デイサービス","低圧","都市ガス",8700]
[{"$f":"B121&C121&D121","v":"放課後等デイサービス低圧プロパンガス"},"放課後等デイサービス","低圧","プロパンガス",13350]
[]
[]
[]
[null,"児訪問系","支給単位","⑮　都市ガスを利用している場合","⑯　プロパンガスを利用している場合"]
[null,"児訪問系","１事業所当たり",4100,3600]
[null,"居宅訪問型児童発達支援"]
[null,"保育所等訪問支援"]
[]
["key","児訪問系","高圧・低圧","都市ガス・プロパンガス","金額"]
[{"$f":"B131&D131","v":"児訪問系都市ガス"},"児訪問系","-","都市ガス",4100]
[{"$f":"B132&D132","v":"児訪問系プロパンガス"},"児訪問系","-","プロパンガス",3600]
["居宅訪問型児童発達支援都市ガス","居宅訪問型児童発達支援","-","都市ガス",4100]
["居宅訪問型児童発達支援プロパンガス","居宅訪問型児童発達支援","-","プロパンガス",3600]
["保育所等訪問支援都市ガス","保育所等訪問支援","-","都市ガス",4100]
["保育所等訪問支援プロパンガス","保育所等訪問支援","-","プロパンガス",3600]
[]
[null,"※１　「共同生活援助系」の１住居当たりの補助額の支給単位は定員とし、１住居当たりの定員が２～５人の場合は６人とする。また、プロパンガスの契約の場合の１住居当たりの補助額については、"]
[null,"　　補助単価に定員数を乗じた額から、埼玉県で別途実施される「埼玉県ＬＰガス料金負担軽減事業補助金」において軽減されるプロパンガス利用者負担額２，３００円を減算した額とする。"]
[]
[]
[]
[]
[]
["ガソリン区分①（12㎞未満）",12]
["ガソリン区分②（12㎞以上22㎞未満）",22]
["ガソリン区分③（22㎞以上）"]